lending/lending_fUSD_20240207
["ID","MTS","AMOUNT","RATE_DAILY","PERIOD"]
[313392124,1707270632259,-171.0207,0.00034548,7]
[313392125,1707270632269,-171.0207,0.00034648,7]
[313392126,1707270632282,-150.0,0.00034682,2]
[313392127,1707270632291,-150.0,0.00034687,2]
[313392128,1707270632301,-521.3396,0.00034699,2]
[313392129,1707270632310,-150.0,0.00034713,2]
[313392130,1707270632319,-261.38690075,0.00034715,2]
[313392131,1707270632328,-500.0,0.00034718,2]
[313392132,1707270632337,-800.0,0.00034718,2]
[313392133,1707270632346,-500.0,0.00034719,2]
[313392134,1707270632355,-500.0,0.00034719,2]
[313392135,1707270632364,-200.0,0.00034719,2]
[313392136,1707270632374,-800.0,0.00034719,2]
[313392137,1707270632383,-800.0,0.00034719,2]
[313392138,1707270632392,-150.0,0.00034728,2]
[313392139,1707270632402,-171.0207,0.00034748,7]
[313392140,1707270632411,-150.0,0.00034751,2]
[313392141,1707270632420,-152.79497375,0.00034765,2]
[313392142,1707270632430,-150.0,0.00034765,2]
[313392143,1707270632439,-150.0,0.00034787,2]
[313392144,1707270632448,-1788.43,0.00034789,10]
[313392145,1707270632457,-1490.36,0.00034789,10]
[313392146,1707270632467,-689.4661,0.0003479,2]
[313392147,1707270632476,-1468.241,0.0003479,2]
[313392148,1707270632486,-563.6478,0.0003479,2]
[313392149,1707270632495,-998.50333517,0.0003479,7]
[313392150,1707270632504,-322.76,0.00034795,2]
[313392151,1707270632514,-195.64648384,0.00034798,3]
[313392152,1707270632523,-2328.2763,0.00034799,3]
[313392153,1707270632532,-1903.8112,0.00034799,2]
[313392154,1707270632541,-219892.2288,0.00034799,2]
[313392155,1707270632551,-5964.02618174,0.000348,7]
[313392156,1707270632560,-5000.0,0.000348,3]
[313392157,1707270632569,-165.56017878,0.000348,2]
[313392158,1707270632579,-166.31510419,0.000348,7]
[313392159,1707270632588,-235.45232938,0.000348,2]
[313392160,1707270632597,-745.88680135,0.000348,2]
[313392161,1707270632607,-287.10500428,0.000348,2]
[313392162,1707270632616,-1210.53098039,0.000348,24]
[313392163,1707270632629,-196.01729841,0.000348,2]
[313392164,1707270632638,-704.00291397,0.000348,2]
[313392165,1707270632647,-157.5034571,0.000348,2]
[313392166,1707270632656,-150.0,0.00034826,2]
[313392167,1707270632665,-191.42346175,0.00034832,2]
[313392168,1707270632676,-150.0,0.00034839,2]
[313392169,1707270632685,-150.0,0.00034845,2]
[313392170,1707270632695,-48556.2107419,0.0003488,7]
[313392171,1707270632704,-492.67873813,0.0003488,4]
[313392172,1707270632716,-500.0,0.00034888,7]
[313392173,1707270632725,-208.93722991,0.00034889,90]
[313392174,1707270632735,-791.55269151,0.0003489,14]
[313392175,1707270632745,-4684.38,0.0003489,10]
[313392176,1707270632755,-150.0,0.00034892,2]
[313392177,1707270632765,-4523.02010311,0.00034896,4]
[313392178,1707270632774,-13948.51539718,0.00034897,2]
[313392184,1707270637693,-1241.97,0.00034789,10]
[313392185,1707270637702,-2587.25093622,0.00034897,2]
[313392186,1707270637748,-4224.9,0.00034897,2]
[313392187,1707270637762,-2781.45277867,0.00034897,2]
[313392188,1707270637806,-8447.3889702,0.00034897,2]
[313392189,1707270637864,-1076.31462604,0.00034897,2]
[313392190,1707270637875,-480.86317792,0.00034897,2]
[313392191,1707270637885,-269.49698536,0.00034898,4]
[313392192,1707270637894,-11.53200635,0.00034898,2]
[313392193,1707270637906,-278.83688294,0.00034898,2]
[313392194,1707270637916,-86.96709523,0.00034898,7]
[313392195,1707270637933,-84.05360477,0.00034898,7]
[313392196,1707270637944,-160.10539998,0.00034899,4]
[313392197,1707270637954,-26504.97516982,0.00034899,2]
[313392198,1707270637976,-329.7,0.00034899,2]
[313392212,1707270640294,-436.53100009,0.00034899,2]
[313392213,1707270640407,-334.45119587,0.00034899,2]
[313392252,1707270642668,-1034.97,0.00034889,10]
[313392254,1707270642677,-600.08878923,0.00034899,2]
[313392256,1707270642886,-1487.01374093,0.00034899,2]
[313392257,1707270642995,-0.59881419,0.00034899,2]
[313392259,1707270643008,-2124.38043081,0.00034899,2]
[313392266,1707270645795,-14548.8755808,0.00034899,2]
[313392267,1707270645808,-1943.66,0.00034899,2]
[313392276,1707270806166,310.39000903,0.00022078,2]
[313392277,1707270806872,3202.7522745,0.00022078,2]
[313392278,1707270832708,163.99983997,0.00020697,2]
[313392279,1707270850066,4565.0529876,0.0002,2]
[313392280,1707270913621,267.77801039,0.0002,2]
[313392281,1707270927611,267.77801039,0.0002,2]
[313392282,1707270949621,267.77801039,0.0002,2]
[313392283,1707270971610,245.41244981,0.0002,2]
[313392284,1707271462476,3940.0,0.00022317,2]
[313392301,1707271831794,-688.9343858,0.00022541,2]
[313392308,1707271831902,-639.91916815,0.00022541,2]
[313392309,1707271831914,-3079.21785668,0.00022541,2]
[313392310,1707271831926,-170.65621282,0.00022541,2]
[313392311,1707271831936,-368.22378718,0.00022542,2]
[313392312,1707271831961,-383.77621282,0.00022542,2]
[313392313,1707271831972,-409.1723,0.000229,2]
[313392314,1707271831982,-300.0,0.00022998,2]
[313392315,1707271831992,-81.4220348,0.00022999,2]
[313392316,1707271832022,-7810.58269035,0.00022999,2]
[313392317,1707271832108,-840.46139142,0.00022999,2]
[313392338,1707271837863,-21354.6656798,0.00022999,2]
[313392339,1707271838080,-381.38959904,0.00022999,2]
[313392340,1707271838096,-478.2324,0.00022999,2]
[313392341,1707271838108,-293.536,0.00022999,2]
[313392342,1707271838257,-20771.55060607,0.00022999,2]
[313392343,1707271838267,-346.57904154,0.00022999,2]
[313392344,1707271838276,-195.64648384,0.00023,3]
[313392345,1707271838285,-186404.46712062,0.00023,2]
[313392346,1707271841052,-1276.05186003,0.00023,2]
[313392347,1707271841257,-539.82776929,0.00023,2]
[313392348,1707271841272,-464.22122074,0.00023,2]
[313392349,1707271841284,-1488.91443361,0.00023,2]
[313392350,1707271841295,-568.52842727,0.00023,2]
[313392351,1707271841307,-905.95027825,0.00023,2]
[313392352,1707271841318,-281.58631847,0.00023,2]
[313392353,1707271841329,-424.5191321,0.00023,2]
[313392354,1707271841341,-300.25019249,0.00023,2]
[313392356,1707271841352,-353.89329981,0.00023,2]
[313392357,1707271841364,-4499.13545057,0.00023,2]
[313392358,1707271841383,-991.93470308,0.00023,2]
[313392375,1707271842960,-1205.35868843,0.00023,2]
[313392376,1707271843048,-1982.98337507,0.00023,2]
[313392377,1707271843059,-960.94494096,0.00023,2]
[313392378,1707271843108,-4927.89073133,0.00023,2]
[313392379,1707271843165,-3700.48439043,0.00023,2]
[313392380,1707271843177,-31165.60850922,0.00023,2]
[313392381,1707271843188,-1864.29938879,0.00023,2]
[313392408,1707271845849,-391.33249507,0.00023,2]
[313392409,1707271846011,-73238.9348658,0.00023,2]
[313392410,1707271846130,-8875.94430116,0.00023,2]
[313392416,1707271855092,777.29348224,0.00022317,2]
[313392417,1707272089171,1000.0,0.00022999,5]
[313392418,1707272089412,857.32207066,0.00022999,5]
[313392420,1707272963657,432.82,0.00021395,2]
[313392421,1707273004130,227.81,0.00022855,10]
[313392432,1707273032026,-150.0,0.00022549,2]
[313392433,1707273032036,-183.19861842,0.00022713,2]
[313392434,1707273032048,-1194.02988432,0.00022713,2]
[313392435,1707273032057,-523.61,0.00022714,2]
[313392436,1707273032066,-164.45535426,0.00022799,2]
[313392437,1707273032076,-350.53450083,0.00022898,2]
[313392438,1707273032087,-679.70803117,0.00022898,2]
[313392439,1707273032099,-1270.173871,0.00022898,2]
[313392440,1707273032115,-353.11621114,0.00022898,2]
[313392441,1707273032127,-281.63740935,0.00022898,2]
[313392442,1707273032138,-266.1619309,0.00022898,2]
[313392443,1707273032149,-4674.12454561,0.00022898,2]
[313392444,1707273032159,-873.69041823,0.00022899,2]
[313392445,1707273032168,-4158.55505418,0.000229,2]
[313392446,1707273032179,-272.15322238,0.000229,2]
[313392447,1707273032295,-506.00717715,0.000229,2]
[313392448,1707273032307,-530.30854631,0.000229,2]
[313392449,1707273032316,-250.0,0.00022952,2]
[313392450,1707273032326,-4595.96603786,0.00022988,2]
[313392451,1707273032334,-193.86408536,0.00022996,2]
[313392452,1707273032344,-365.48228445,0.00022997,2]
[313392454,1707273032353,-129894.72494817,0.00022998,2]
[313392456,1707273032366,-36930.5625481,0.00022998,2]
[313392458,1707273032376,-2133.92438189,0.00022998,2]
[313392460,1707273032385,-155.2231098,0.00022998,2]
[313392462,1707273032394,-7473.82782723,0.00022998,2]
[313392464,1707273032404,-150.99,0.00022998,2]
[313392466,1707273032412,-1635.85,0.00022998,2]
[313392468,1707273032421,-155.53184949,0.00022999,2]
[313392469,1707273032430,-729.8820494,0.00022999,2]
[313392470,1707273032440,-160.75761252,0.00022999,2]
[313392471,1707273032450,-234.6802873,0.00022999,2]
[313392472,1707273032463,-225.27786101,0.00022999,2]
[313392473,1707273032472,-528.08692208,0.00022999,2]
[313392474,1707273032482,-267.53849808,0.00022999,2]
[313392475,1707273032491,-1172.88366768,0.00022999,2]
[313392476,1707273032500,-446.28449039,0.00022999,2]
[313392477,1707273032659,-194554.44145622,0.00022999,2]
[313392478,1707273032668,-603.17629097,0.00022999,2]
[313392479,1707273032677,-288.0859255,0.00022999,2]
[313392480,1707273032686,-419.48040609,0.00022999,2]
[313392481,1707273032696,-235.55390504,0.00022999,2]
[313392482,1707273032706,-913.46712405,0.00022999,2]
[313392483,1707273032715,-156.11950244,0.00022999,2]
[313392484,1707273032724,-173.03213274,0.00022999,2]
[313392485,1707273032733,-51347.24203568,0.00023,2]
[313392491,1707273038152,-59606.72656755,0.00023,2]
[313392492,1707273038205,-8628.11548024,0.00023,2]
[313392493,1707273038314,-11907.17079839,0.00023,2]
[313392494,1707273038326,-312.13751197,0.00023,2]
[313392495,1707273038389,-94869.19379004,0.00023,2]
[313392506,1707273040611,-437.95099589,0.00023,2]
[313392507,1707273040622,-17359.03573202,0.00023,2]
[313392508,1707273040713,-460.26764864,0.00023,2]
[313392509,1707273040725,-3038.2252045,0.00023,2]
[313392510,1707273040774,-1708.20203574,0.00023,2]
[313392511,1707273040785,-1543.74067639,0.00023,2]
[313392512,1707273040882,-1842.98137746,0.00023,2]
[313392513,1707273040894,-4204.89999999,0.00023,2]
[313392539,1707273043072,-286.15274536,0.00023,2]
[313392542,1707273043129,-301.34277649,0.00023,2]
[313392543,1707273043141,-2145.27600764,0.00023,2]
[313392544,1707273043152,-2297.92949418,0.00023,2]
[313392545,1707273043291,-1341.32201624,0.00023,2]
[313392546,1707273043398,-1500.0,0.00023,2]
[313392547,1707273043410,-23572.56051551,0.00023,2]
[313392548,1707273043422,-5683.61112122,0.00023,2]
[313392565,1707273045864,1501.40613755,0.00021723,2]
[313392567,1707273046071,-155.66867343,0.00022999,2]
[313392568,1707273046080,-568.11692149,0.00023,2]
[313392569,1707273046126,-2938.30643068,0.00023,2]
[313392570,1707273046138,-444.1546217,0.00023,2]
[313392571,1707273046237,-58782.17331098,0.00023,2]
[313392572,1707273046292,-388.37127809,0.00023,2]
[313392573,1707273046304,-966.16924044,0.00023,2]
[313392574,1707273046365,1501.40613755,0.00022173,2]
[313392575,1707273046812,1501.40613755,0.00022257,2]
[313392576,1707273187078,1501.40613755,0.00022295,2]
[313392577,1707273404386,694.7,0.00022,2]
[313392578,1707273425920,250.0,0.00022356,2]
[313392579,1707273431657,177.23925622,0.00022698,5]
[313392580,1707273452249,10909.75,0.00022416,2]
[313392581,1707273475333,9081.48,0.00022416,2]
[313392582,1707273480474,250.0,0.00022416,2]
[313392583,1707273516826,442.74,0.0002058,2]
[313392584,1707273528019,500.0,0.00022379,2]
[313392585,1707273534532,190.43,0.00022379,2]
[313392586,1707273541339,794.02,0.00022379,2]
[313392587,1707273564855,182.25,0.0002238,10]
[313392588,1707273565258,182.25,0.00022928,10]
[313392589,1707273570079,499.86,0.00022257,2]
[313392590,1707273603304,200.0,0.00022227,2]
[313392591,1707273636304,169.53,0.00022305,2]
[313392592,1707273669698,10000.0,0.00022501,2]
[313392593,1707273684632,9353.5,0.00022501,2]
[313392594,1707273705968,750.0,0.00021912,2]
[313392595,1707273707137,840.0,0.00021912,2]
[313392596,1707273736478,150.0,0.00021912,2]
[313392597,1707273748017,2000.0,0.00021924,2]
[313392598,1707273757525,150.0,0.00023,5]
[313392599,1707273758643,23900.0,0.00021924,2]
[313392600,1707273794417,9943.89,0.00021924,2]
[313392601,1707273794641,176.19,0.00021924,2]
[313392602,1707273818538,595.38,0.00021948,2]
[313392603,1707273820415,351.98,0.00021963,2]
[313392604,1707273926554,182.85,0.00022495,2]
[313392605,1707273926806,14493.43,0.00021947,2]
[313392606,1707273952591,420.6,0.00020056,2]
[313392607,1707273952910,420.6,0.0002232,2]
[313392608,1707273986033,416.55,0.00021974,2]
[313392609,1707274035488,250.0,0.00021974,2]
[313392610,1707274178501,182.25,0.00022023,10]
[313392611,1707274184495,1501.40613755,0.00022485,2]
[313392612,1707274190971,23900.0,0.00022029,2]
[313392613,1707274213699,328.0,0.00022077,2]
[313392620,1707274232198,-1501.01740747,0.00022559,2]
[313392622,1707274232360,-400.42926635,0.00022559,2]
[313392623,1707274232470,-2364.19842618,0.00022559,2]
[313392624,1707274232479,-157.5926148,0.00022559,2]
[313392625,1707274232489,-159.01,0.00022575,2]
[313392626,1707274232498,-170.68,0.00022638,2]
[313392627,1707274232507,-150.0,0.00022658,2]
[313392628,1707274232516,-129894.72494817,0.00022659,2]
[313392629,1707274232526,-21566.91410674,0.0002266,2]
[313392631,1707274232535,-7598.394,0.00022669,2]
[313392633,1707274232544,-159.01,0.00022673,2]
[313392636,1707274232560,-3106.57,0.00022673,2]
[313392638,1707274232574,-499.99,0.00022673,2]
[313392641,1707274232584,-403.3249,0.00022697,2]
[313392644,1707274232593,-2000.64,0.00022697,2]
[313392647,1707274232602,-159.01,0.00022771,2]
[313392650,1707274232611,-26246.2278,0.00022798,2]
[313392653,1707274232621,-1838.87,0.00022844,2]
[313392656,1707274232630,-383.62,0.00022844,2]
[313392659,1707274232640,-159.01,0.00022869,2]
[313392662,1707274232649,-1000.0,0.0002289,2]
[313392665,1707274232658,-4510.835,0.00022899,2]
[313392668,1707274232668,-9824.3018,0.000229,2]
[313392671,1707274232679,-847.267251,0.000229,2]
[313392674,1707274232688,-210.22309377,0.000229,2]
[313392677,1707274232697,-159.01,0.00022967,2]
[313392680,1707274232707,-247.76645731,0.0002299,2]
[313392683,1707274232716,-1053.05809363,0.00022998,2]
[313392686,1707274232725,-1381.99088525,0.00022999,2]
[313392689,1707274232734,-151234.29134584,0.00022999,2]
[313392692,1707274232744,-162285.23995411,0.00023,2]
[313392717,1707274240824,-252.79800973,0.00023,2]
[313392718,1707274241510,-4097.6887784,0.00023,2]
[313392719,1707274241523,-836.9735651,0.00023,2]
[313392720,1707274241536,-557.70601746,0.00023,2]
[313392721,1707274241568,-5803.29494381,0.00023,2]
[313392722,1707274241580,-239544.71196729,0.00023,2]
[313392723,1707274241590,-188.19,0.00023,2]
[313392724,1707274241599,-1501.40613756,0.00023028,2]
[313392725,1707274241608,-159.01,0.00023065,2]
[313392726,1707274241618,-182.25,0.00023102,10]
[313392727,1707274241627,-171.64,0.00023144,2]
[313392728,1707274241636,-159.01,0.00023163,2]
[313392729,1707274241646,-159.01,0.00023261,2]
[313392730,1707274241655,-159.01,0.00023359,2]
[313392731,1707274241666,-159.01,0.00023457,2]
[313392732,1707274241676,-159.01,0.00023555,2]
[313392733,1707274241686,-416.55,0.00023617,2]
[313392734,1707274241695,-159.01,0.00023653,2]
[313392735,1707274241705,-159.01,0.00023752,2]
[313392736,1707274241714,-182.25,0.00024181,10]
[313392737,1707274241723,-356.40603878,0.00024583,4]
[313392738,1707274241733,-420.6,0.00024584,2]
[313392739,1707274241742,-840.0,0.00024651,2]
[313392740,1707274241752,-250.0,0.00024658,2]
[313392741,1707274241761,-328.0,0.00024836,2]
[313392742,1707274241771,-210.0,0.00024923,2]
[313392743,1707274241780,-617.7551017,0.00025,2]
[313392744,1707274241789,-350.0,0.00025,3]
[313392745,1707274241799,-416.55,0.00025261,2]
[313392746,1707274241808,-1346.64,0.00025593,2]
[313392747,1707274241818,-210.0,0.00025617,2]
[313392748,1707274241827,-274.61536347,0.000259,2]
[313392749,1707274241837,-800.0,0.00026055,2]
[313392750,1707274241846,-847.26725097,0.00026071,3]
[313392751,1707274241855,-150.0,0.00026079,2]
[313392752,1707274241865,-420.6,0.00026847,2]
[313392753,1707274241878,-416.55,0.00026905,2]
[313392754,1707274241887,-400.0,0.00027,3]
[313392756,1707274241897,-349.5224403,0.0002705,2]
[313392758,1707274241906,-298.0,0.0002705,2]
[313392760,1707274241917,-170.68,0.00027166,2]
[313392762,1707274241926,-2184.0,0.000272,2]
[313392764,1707274241936,-8188.0,0.000273,2]
[313392766,1707274241946,-840.0,0.0002739,2]
[313392767,1707274241957,-328.0,0.00027596,2]
[313392770,1707274241967,-603.94202869,0.00028,2]
[313392772,1707274241976,-416.55,0.00028549,2]
[313392773,1707274241986,-450.0,0.00029,3]
[313392775,1707274241995,-420.6,0.00029111,2]
[313392777,1707274242005,-847.26725097,0.00029243,4]
[313392779,1707274242014,-4697.0,0.00029439,2]
[313392781,1707274242024,-210.0,0.00029915,9]
[313392783,1707274242034,-155.0,0.0003,2]
[313392784,1707274242043,-696.48562205,0.0003,2]
[313392785,1707274242053,-840.0,0.00030129,2]
[313392786,1707274242062,-1500.0,0.00030137,7]
[313392787,1707274242072,-416.55,0.00030193,2]
[313392788,1707274242081,-328.0,0.00030355,2]
[313392789,1707274242091,-351.98,0.00030748,2]
[313392790,1707274242100,-500.0,0.00031,3]
[313392791,1707274242109,-420.6,0.00031375,2]
[313392792,1707274242118,-227.00530143,0.00031408,7]
[313392793,1707274242127,-180.0,0.00031644,2]
[313392794,1707274242136,-5011.43866663,0.00031721,3]
[313392795,1707274242145,-409.0,0.000318,5]
[313392796,1707274242154,-847.26725097,0.00032414,6]
[313392797,1707274242163,-5795.97467395,0.0003278,5]
[313392798,1707274242177,-405.80371586,0.0003278,5]
[313392799,1707274242203,-890.17,0.0003278,5]
[313392807,1707274243217,-256.81548211,0.0003278,5]
[313392814,1707274243324,-500.0,0.0003278,5]
[313392815,1707274243432,-3589.61915334,0.0003278,5]
[313392816,1707274243444,-753.36296201,0.0003278,5]
[313392817,1707274243505,-533.0,0.0003278,5]
[313392836,1707274246603,-525.76793032,0.00032779,4]
[313392837,1707274246613,-1979.03778555,0.0003278,5]
[313392838,1707274246623,-840.0,0.00032868,2]
[313392839,1707274246632,-500.0,0.000329,2]
[313392840,1707274246641,-1000.0,0.00033,2]
[313392841,1707274246651,-550.0,0.00033,3]
[313392842,1707274246660,-5011.43866659,0.00033046,5]
[313392843,1707274246669,-328.0,0.00033115,2]
[313392844,1707274246678,-420.6,0.00033639,2]
[313392845,1707274246688,-300.0,0.00033999,2]
[313392846,1707274246697,-311.22040589,0.00033999,2]
[313392847,1707274246707,-1339.253493,0.00034,30]
[313392848,1707274246716,-175.54415136,0.00034,2]
[313392849,1707274246725,-1051.86168828,0.00034,7]
[313392885,1707275431445,-1743.3126006,0.00022559,2]
[313392887,1707275431458,-935.54605528,0.00022559,2]
[313392888,1707275431606,-1423.05464412,0.00022559,2]
[313392889,1707275431616,-1607.99781848,0.0002256,2]
[313392890,1707275431625,-210.0,0.00022617,2]
[313392891,1707275431634,-1000.0,0.00022698,2]
[313392892,1707275431644,-150.0,0.00022899,2]
[313392893,1707275431653,-2581.49790076,0.000229,2]
[313392894,1707275431668,-259.56543941,0.000229,2]
[313392895,1707275431680,-667.69203598,0.000229,2]
[313392896,1707275431690,-210.0,0.00027957,10]
[313392897,1707275431699,-66.94537895,0.00028859,2]
[313392898,1707275431711,-418.66662105,0.00028859,2]
[313392899,1707275431721,-1657.9,0.00028859,2]
[313392901,1707275431732,-499.99,0.00028859,2]
[313392904,1707275431741,-305.77,0.00029572,2]
[313392905,1707275431751,-155.0,0.0003,2]
[313392908,1707275431760,-724.06,0.00031034,2]
[313392909,1707275431769,-499.99,0.00031034,2]
[313392911,1707275431779,-245.65,0.00031327,2]
[313392913,1707275431788,-349.36669374,0.00031417,2]
[313392916,1707275431801,-2679.21330626,0.00031417,2]
[313392918,1707275431810,-234.48,0.0003152,2]
[313392920,1707275431819,-545.51,0.00031547,2]
[313392922,1707275431829,-150.0,0.00031593,2]
[313392924,1707275431838,-250.0,0.00031598,2]
[313392926,1707275431848,-1500.0,0.00031654,7]
[313392928,1707275431858,-305.77,0.00031836,2]
[313392930,1707275431868,-211.25,0.0003215,2]
[313392931,1707275431878,-1000.0,0.0003227,2]
[313392933,1707275431888,-155.0,0.00032778,4]
[313392934,1707275431898,-500.0,0.000329,2]
[313392935,1707275431908,-1160.24,0.00032944,2]
[313392936,1707275431918,-210.0,0.00033298,18]
[313392937,1707275431928,-1291.0586,0.00033678,2]
[313392938,1707275431938,-547.85550518,0.00033689,6]
[313392939,1707275431947,-800.0,0.00033727,2]
[313392940,1707275431957,-800.0,0.00033728,2]
[313392941,1707275431967,-800.0,0.00033728,2]
[313392942,1707275431977,-800.0,0.00033728,2]
[313392943,1707275431986,-454.85,0.00033757,10]
[313392944,1707275431996,-786.67,0.00033757,10]
[313392945,1707275432006,-655.56,0.00033757,10]
[313392946,1707275432019,-290.20367664,0.00033768,2]
[313392947,1707275432029,-290.20367664,0.00033768,2]
[313392948,1707275432039,-290.20367664,0.00033768,2]
[313392949,1707275432049,-290.20367664,0.00033768,2]
[313392950,1707275432059,-290.20367664,0.00033768,2]
[313392951,1707275432069,-290.20367664,0.00033768,2]
[313392952,1707275432079,-290.20367664,0.00033768,2]
[313392953,1707275432089,-290.20367664,0.00033768,2]
[313392954,1707275432099,-290.20367664,0.00033768,2]
[313392955,1707275432108,-290.20367664,0.00033768,2]
[313392956,1707275432118,-290.20367664,0.00033768,2]
[313392957,1707275432128,-290.20367664,0.00033768,2]
[313392958,1707275432137,-290.20367664,0.00033768,2]
[313392959,1707275432147,-290.20367664,0.00033768,2]
[313392960,1707275432157,-290.20367664,0.00033768,2]
[313392961,1707275432166,-290.20367664,0.00033768,2]
[313392962,1707275432175,-290.20367664,0.00033768,2]
[313392963,1707275432185,-290.20367664,0.00033768,2]
[313392964,1707275432194,-290.20367664,0.00033768,2]
[313392965,1707275432204,-290.20367664,0.00033768,2]
[313392966,1707275432213,-290.20367664,0.00033768,2]
[313392967,1707275432225,-290.20367664,0.00033768,2]
[313392968,1707275432235,-290.20367664,0.00033768,2]
[313392969,1707275432244,-290.20367664,0.00033768,2]
[313392970,1707275432254,-290.20367664,0.00033768,2]
[313392971,1707275432265,-290.20367664,0.00033768,2]
[313392972,1707275432274,-290.20367664,0.00033768,2]
[313392973,1707275432284,-290.20367664,0.00033768,2]
[313392974,1707275432293,-290.20367664,0.00033768,2]
[313392975,1707275432303,-290.20367664,0.00033768,2]
[313392976,1707275432313,-290.20367664,0.00033768,2]
[313392977,1707275432322,-290.20367664,0.00033768,2]
[313392978,1707275432331,-290.20367664,0.00033768,2]
[313392979,1707275432341,-290.20367664,0.00033768,2]
[313392980,1707275432350,-290.20367664,0.00033768,2]
[313392981,1707275432362,-546.3,0.00033779,10]
[313392982,1707275432373,-174522.66307816,0.00033788,2]
[313392983,1707275432383,-22822.4408,0.00033789,2]
[313392984,1707275432393,-84114.64759319,0.00033789,2]
[313393003,1707275437438,-3923.54313859,0.00033789,2]
[313393004,1707275437494,-420.1607638,0.00033789,2]
[313393005,1707275437509,-350.26402451,0.00033789,2]
[313393006,1707275437550,-11191.38447991,0.00033789,2]
[313393007,1707275437560,-27633.82556078,0.00033789,2]
[313393008,1707275437571,-4333.1718949,0.00033789,2]
[313393009,1707275437659,-331.67271547,0.00033789,2]
[313393010,1707275437671,-759.73330431,0.00033789,2]
[313393011,1707275437819,-691.20961858,0.00033789,2]
[313393309,1707275440893,-6288.60429348,0.00033789,2]
[313393442,1707275444739,-211.25,0.00033717,2]
[313393443,1707275444749,-1288.75,0.00033789,2]
[313393444,1707275445480,-1000.0,0.00033789,2]
[313393446,1707275613781,210.0,0.00021617,2]
[313393453,1707276631684,-150.02,0.00022606,2]
[313393454,1707276631694,-151.43,0.00022611,2]
[313393455,1707276631704,-1360.05207071,0.00022616,2]
[313393456,1707276631717,-491.67029575,0.00022616,2]
[313393457,1707276631737,-969.15350083,0.00022616,2]
[313393458,1707276633396,-1244.78381169,0.00022616,2]
[313393459,1707276633405,-157.12917362,0.000249,2]
[313393460,1707276633415,-350.0,0.00025,3]
[313393461,1707276633424,-400.0,0.00027,3]
[313393462,1707276633433,-210.0,0.00027294,2]
[313393463,1707276633443,-157.12917361,0.000282,2]
[313393464,1707276633452,-450.0,0.00029,3]
[313393465,1707276633462,-155.0,0.0003,2]
[313393466,1707276633472,-694.99088532,0.00030336,2]
[313393467,1707276633482,-285.96,0.00030339,2]
[313393468,1707276633491,-1000.0,0.00030779,7]
[313393469,1707276633501,-500.0,0.00031,3]
[313393470,1707276633510,-499.99,0.00031,2]
[313393472,1707276633520,-157.12917361,0.000315,2]
[313393474,1707276633529,-1500.0,0.00031651,7]
[313393475,1707276633539,-250.0,0.0003167,2]
[313393476,1707276633549,-21302.92,0.00031754,2]
[313393477,1707276633559,-1000.0,0.00031865,2]
[313393478,1707276633568,-154.39,0.00032173,2]
[313393480,1707276633578,-1852.42,0.00032187,2]
[313393482,1707276633591,-150.0,0.00032243,2]
[313393483,1707276633600,-966.86,0.00032247,2]
[313393484,1707276633610,-285.96,0.00032603,2]
[313393485,1707276633619,-166.28,0.00032634,2]
[313393486,1707276633629,-500.0,0.000329,2]
[313393487,1707276633638,-550.0,0.00033,3]
[313393488,1707276633648,-151.0207,0.00033118,3]
[313393489,1707276633658,-151.0207,0.00033218,3]
[313393490,1707276633669,-161.0207,0.00033618,3]
[313393491,1707276633680,-316.1289,0.00033667,2]
[313393492,1707276633691,-322.1949,0.00033667,2]